[Event "Early-Titled-Tuesday-Blitz-September-05-2023"]
[Site "Chess.com"]
[Date "2023.09.05"]
[Round "6"]
[White "Hope_6"]
[Black "Sanan_Sjugirov"]
[Result "1-0"]
[WhiteElo "2718"]
[BlackElo "2890"]
[TimeControl "180+1"]
[EndTime "9:07:43 PDT"]
[Termination "Hope_6 won on time"]

1. d4 {[%clk 0:03:00]} 1... Nf6 {[%clk 0:03:00]} 2. c4 {[%clk 0:03:00.8]} 2...
e6 {[%clk 0:03:00.4]} 3. Bf4 {[%clk 0:03:01.2]} 3... Bb4+ {[%clk 0:02:55]} 4.
Nd2 {[%clk 0:03:00.7]} 4... b6 {[%clk 0:02:52.5]} 5. a3 {[%clk 0:02:58.7]} 5...
Bxd2+ {[%clk 0:02:45.8]} 6. Qxd2 {[%clk 0:02:57.3]} 6... Bb7 {[%clk 0:02:46.4]}
7. Nf3 {[%clk 0:02:56.2]} 7... d6 {[%clk 0:02:45.8]} 8. e3 {[%clk 0:02:54.6]}
8... Nbd7 {[%clk 0:02:45.3]} 9. h3 {[%clk 0:02:53.6]} 9... Qe7 {[%clk 0:02:42]}
10. Be2 {[%clk 0:02:52.2]} 10... O-O {[%clk 0:02:40.9]} 11. O-O {[%clk
0:02:51.3]} 11... Ne4 {[%clk 0:02:40.2]} 12. Qc2 {[%clk 0:02:49.5]} 12... f5
{[%clk 0:02:40]} 13. Bh2 {[%clk 0:02:47.6]} 13... Ng5 {[%clk 0:02:34.7]} 14. Qd1
{[%clk 0:02:40.5]} 14... a5 {[%clk 0:02:29.3]} 15. Rc1 {[%clk 0:02:36.7]} 15...
a4 {[%clk 0:02:27.6]} 16. Nxg5 {[%clk 0:02:29.2]} 16... Qxg5 {[%clk 0:02:28.5]}
17. Bf3 {[%clk 0:02:29.5]} 17... Be4 {[%clk 0:02:06.6]} 18. Qe2 {[%clk 0:02:24]}
18... Ra5 {[%clk 0:01:51.9]} 19. Rfd1 {[%clk 0:02:18.8]} 19... h6 {[%clk
0:01:46.6]} 20. Bg3 {[%clk 0:02:14.2]} 20... Qe7 {[%clk 0:01:40.6]} 21. Rd2
{[%clk 0:01:59.3]} 21... Bxf3 {[%clk 0:01:33.1]} 22. Qxf3 {[%clk 0:01:58.6]}
22... Nf6 {[%clk 0:01:33.6]} 23. Rdc2 {[%clk 0:01:49.7]} 23... Ne4 {[%clk
0:01:31.9]} 24. Bh2 {[%clk 0:01:39.8]} 24... c5 {[%clk 0:01:27.3]} 25. Rd1
{[%clk 0:01:34.7]} 25... cxd4 {[%clk 0:01:18.6]} 26. exd4 {[%clk 0:01:33.5]}
26... Rc8 {[%clk 0:01:14.8]} 27. Qe2 {[%clk 0:01:28.1]} 27... Qd7 {[%clk
0:01:05]} 28. Re1 {[%clk 0:01:23.3]} 28... Re8 {[%clk 0:00:36.9]} 29. Kh1 {[%clk
0:01:22.5]} 29... Raa8 {[%clk 0:00:34.4]} 30. f3 {[%clk 0:01:15.8]} 30... Nf6
{[%clk 0:00:34.6]} 31. c5 {[%clk 0:01:11.6]} 31... bxc5 {[%clk 0:00:31.3]} 32.
dxc5 {[%clk 0:01:11.4]} 32... dxc5 {[%clk 0:00:31.4]} 33. Rxc5 {[%clk
0:01:10.7]} 33... Nd5 {[%clk 0:00:30.8]} 34. Be5 {[%clk 0:01:06.6]} 34... Rec8
{[%clk 0:00:29.3]} 35. Rec1 {[%clk 0:01:05.4]} 35... Rxc5 {[%clk 0:00:29.2]} 36.
Rxc5 {[%clk 0:01:06]} 36... Rc8 {[%clk 0:00:29.7]} 37. Qc4 {[%clk 0:01:01.6]}
37... Rxc5 {[%clk 0:00:29.7]} 38. Qxc5 {[%clk 0:01:02.2]} 38... Kh7 {[%clk
0:00:28.6]} 39. Kh2 {[%clk 0:01:01.4]} 39... Qb7 {[%clk 0:00:23.8]} 40. Qd6
{[%clk 0:00:53]} 40... Qf7 {[%clk 0:00:21.4]} 41. Qc6 {[%clk 0:00:49.7]} 41...
Qg6 {[%clk 0:00:15]} 42. Qc5 {[%clk 0:00:36.7]} 42... f4 {[%clk 0:00:14.2]} 43.
Qf2 {[%clk 0:00:32]} 43... Qf5 {[%clk 0:00:13]} 44. Qd4 {[%clk 0:00:30.8]} 44...
Ne3 {[%clk 0:00:05.3]} 45. Qxf4 {[%clk 0:00:22.9]} 45... Qxf4+ {[%clk
0:00:05.5]} 46. Bxf4 {[%clk 0:00:23.5]} 46... Nc4 {[%clk 0:00:06.4]} 47. Bc1
{[%clk 0:00:21.1]} 47... g5 {[%clk 0:00:06.7]} 48. g4 {[%clk 0:00:17.8]} 48...
Kg6 {[%clk 0:00:06.7]} 49. Kg3 {[%clk 0:00:17.1]} 49... e5 {[%clk 0:00:06.7]}
50. Kf2 {[%clk 0:00:16.7]} 50... Kf6 {[%clk 0:00:06.9]} 51. Ke2 {[%clk
0:00:12.3]} 51... Ke6 {[%clk 0:00:07.1]} 52. Kd3 {[%clk 0:00:12.5]} 52... Kd5
{[%clk 0:00:07.6]} 53. Kc3 {[%clk 0:00:12.6]} 53... Kc5 {[%clk 0:00:06.9]} 54.
b3 {[%clk 0:00:10.8]} 54... axb3 {[%clk 0:00:06.7]} 55. Kxb3 {[%clk 0:00:11.3]}
55... Kd4 {[%clk 0:00:04.1]} 56. Kc2 {[%clk 0:00:10.2]} 56... e4 {[%clk
0:00:03.8]} 57. fxe4 {[%clk 0:00:08.6]} 57... Kxe4 {[%clk 0:00:04.7]} 58. a4
{[%clk 0:00:08.4]} 58... Kf3 {[%clk 0:00:04.6]} 59. Kb3 {[%clk 0:00:06.8]} 59...
Na5+ {[%clk 0:00:04.1]} 60. Kb4 {[%clk 0:00:07]} 60... Nc6+ {[%clk 0:00:04.5]}
61. Kb5 {[%clk 0:00:06.2]} 61... Nd4+ {[%clk 0:00:05]} 62. Kc4 {[%clk
0:00:06.3]} 62... Nc6 {[%clk 0:00:05.4]} 63. Bd2 {[%clk 0:00:04.3]} 63... Kg3
{[%clk 0:00:05.2]} 64. Kc5 {[%clk 0:00:04.9]} 64... Nb8 {[%clk 0:00:03.4]} 65.
a5 {[%clk 0:00:04.4]} 65... Kxh3 {[%clk 0:00:03.9]} 66. Kb6 {[%clk 0:00:04.9]}
66... Kxg4 {[%clk 0:00:04.1]} 67. Kc7 {[%clk 0:00:05.1]} 67... Na6+ {[%clk
0:00:04.5]} 68. Kb6 {[%clk 0:00:05.5]} 68... Nb8 {[%clk 0:00:04.9]} 69. Kb7
{[%clk 0:00:05.7]} 69... Nd7 {[%clk 0:00:05.1]} 70. Bb4 {[%clk 0:00:05.9]} 70...
h5 {[%clk 0:00:03.4]} 71. a6 {[%clk 0:00:05.9]} 71... h4 {[%clk 0:00:04]} 72. a7
{[%clk 0:00:06.1]} 72... h3 {[%clk 0:00:04.6]} 73. a8=Q {[%clk 0:00:06.3]} 73...
h2 {[%clk 0:00:05.3]} 74. Qa1 {[%clk 0:00:06.5]} 74... Ne5 {[%clk 0:00:04.7]}
75. Qd1+ {[%clk 0:00:05.7]} 75... Nf3 {[%clk 0:00:05.1]} 76. Bd6 {[%clk
0:00:05.6]} 1-0

[Event "Early-Titled-Tuesday-Blitz-September-05-2023"]
[Site "Chess.com"]
[Date "2023.09.05"]
[Round "6"]
[White "Yeremyan_ChessMate"]
[Black "Rsnr"]
[Result "0-1"]
[WhiteElo "2669"]
[BlackElo "2916"]
[TimeControl "180+1"]
[EndTime "9:07:44 PDT"]
[Termination "Rsnr won by resignation"]

1. d4 {[%clk 0:02:56.3]} 1... d5 {[%clk 0:02:59.7]} 2. Nf3 {[%clk 0:02:56.7]}
2... Nf6 {[%clk 0:02:59.4]} 3. g3 {[%clk 0:02:57.4]} 3... b5 {[%clk 0:02:53.6]}
4. Bg2 {[%clk 0:02:58]} 4... e6 {[%clk 0:02:54.2]} 5. O-O {[%clk 0:02:58.7]}
5... Be7 {[%clk 0:02:55]} 6. a4 {[%clk 0:02:59.5]} 6... b4 {[%clk 0:02:55.7]} 7.
c4 {[%clk 0:02:59.9]} 7... bxc3 {[%clk 0:02:56.6]} 8. bxc3 {[%clk 0:03:00.6]}
8... Ba6 {[%clk 0:02:56.4]} 9. Ne5 {[%clk 0:02:58.9]} 9... O-O {[%clk
0:02:57.1]} 10. c4 {[%clk 0:02:59.1]} 10... c6 {[%clk 0:02:57.8]} 11. Nc3 {[%clk
0:02:58.8]} 11... Nfd7 {[%clk 0:02:47]} 12. Nxd7 {[%clk 0:02:47.1]} 12... Nxd7
{[%clk 0:02:45.9]} 13. cxd5 {[%clk 0:02:45.6]} 13... cxd5 {[%clk 0:02:46.7]} 14.
Re1 {[%clk 0:02:45.2]} 14... Rc8 {[%clk 0:02:46.2]} 15. Bd2 {[%clk 0:02:45.3]}
15... Nf6 {[%clk 0:02:40.1]} 16. Nb5 {[%clk 0:02:35.1]} 16... Qd7 {[%clk
0:02:39.3]} 17. Qb1 {[%clk 0:02:25.2]} 17... Rb8 {[%clk 0:02:37.3]} 18. Qd3
{[%clk 0:02:20.7]} 18... Bxb5 {[%clk 0:02:23.1]} 19. axb5 {[%clk 0:02:20.2]}
19... Rxb5 {[%clk 0:02:23.7]} 20. Rxa7 {[%clk 0:02:12.7]} 20... Qxa7 {[%clk
0:02:24.3]} 21. Qxb5 {[%clk 0:02:13.4]} 21... Qxd4 {[%clk 0:02:24.4]} 22. Be3
{[%clk 0:02:14.2]} 22... Qb4 {[%clk 0:02:22]} 23. Qxb4 {[%clk 0:02:12.6]} 23...
Bxb4 {[%clk 0:02:22.7]} 24. Rb1 {[%clk 0:02:12.6]} 24... Bc3 {[%clk 0:02:22.4]}
25. Rc1 {[%clk 0:02:10.2]} 25... Be5 {[%clk 0:02:22]} 26. h3 {[%clk 0:02:08.3]}
26... Ra8 {[%clk 0:02:09.4]} 27. Bg5 {[%clk 0:02:07]} 27... g6 {[%clk
0:01:27.6]} 28. Bxf6 {[%clk 0:02:06.1]} 28... Bxf6 {[%clk 0:01:28.5]} 29. e4
{[%clk 0:02:06.6]} 29... dxe4 {[%clk 0:01:29.4]} 30. Bxe4 {[%clk 0:02:06.6]}
30... Ra4 {[%clk 0:01:29.4]} 31. Bd3 {[%clk 0:01:58.7]} 31... Ra3 {[%clk
0:01:29]} 32. Be4 {[%clk 0:01:59]} 32... Bd4 {[%clk 0:01:29.2]} 33. Rc2 {[%clk
0:01:57.8]} 33... Rxg3+ {[%clk 0:01:29]} 34. Kh2 {[%clk 0:01:49]} 34... Ra3
{[%clk 0:01:29.1]} 35. Kg2 {[%clk 0:01:46.3]} 35... Kg7 {[%clk 0:01:29]} 36. Rc7
{[%clk 0:01:45.6]} 36... Ra2 {[%clk 0:01:23.6]} 37. Bc2 {[%clk 0:01:46.1]} 37...
Be5 {[%clk 0:01:22.6]} 38. Rc6 {[%clk 0:01:45]} 38... g5 {[%clk 0:01:13.8]} 39.
Rc5 {[%clk 0:01:44.4]} 39... Bf4 {[%clk 0:01:07.9]} 40. Rc4 {[%clk 0:01:36.3]}
40... h5 {[%clk 0:01:00.4]} 41. h4 {[%clk 0:01:36.2]} 41... Kf6 {[%clk
0:00:59.6]} 42. hxg5+ {[%clk 0:01:36.1]} 42... Kxg5 {[%clk 0:01:00.3]} 43. Rc8
{[%clk 0:01:31.7]} 43... Be5 {[%clk 0:00:52.6]} 44. Rc5 {[%clk 0:01:25.3]} 44...
Kf6 {[%clk 0:00:52.7]} 45. Rc4 {[%clk 0:01:24.1]} 45... Rb2 {[%clk 0:00:44.1]}
46. Bd1 {[%clk 0:01:23.4]} 46... Kg6 {[%clk 0:00:39.8]} 47. Re4 {[%clk
0:01:17.6]} 47... Bc7 {[%clk 0:00:35.9]} 48. Rc4 {[%clk 0:01:15.3]} 48... Bb6
{[%clk 0:00:32.9]} 49. Rc2 {[%clk 0:01:15.7]} 49... Rb1 {[%clk 0:00:32.1]} 50.
Rd2 {[%clk 0:01:11.2]} 50... Rc1 {[%clk 0:00:30.3]} 51. Bc2+ {[%clk 0:01:09.6]}
51... Kg5 {[%clk 0:00:30.8]} 52. Bd1 {[%clk 0:01:06.1]} 52... h4 {[%clk
0:00:29.9]} 53. Rd3 {[%clk 0:01:04.8]} 53... e5 {[%clk 0:00:29.4]} 54. Bb3
{[%clk 0:00:59.9]} 54... f5 {[%clk 0:00:28.9]} 55. Rd5 {[%clk 0:00:54.2]} 55...
h3+ {[%clk 0:00:28.5]} 56. Kh2 {[%clk 0:00:48.3]} 56... Kf4 {[%clk 0:00:28.5]}
57. Rd2 {[%clk 0:00:35.4]} 57... Rc3 {[%clk 0:00:28.6]} 58. Bd5 {[%clk
0:00:32.2]} 58... e4 {[%clk 0:00:28.7]} 59. Be6 {[%clk 0:00:30.6]} 59... Rf3
{[%clk 0:00:28.2]} 60. Rd5 {[%clk 0:00:30.9]} 60... Kg4 {[%clk 0:00:25.2]} 61.
Rd7 {[%clk 0:00:17]} 61... Bxf2 {[%clk 0:00:24.3]} 62. Kh1 {[%clk 0:00:17.8]}
62... Bg3 {[%clk 0:00:21.6]} 63. Rd1 {[%clk 0:00:14.3]} 63... e3 {[%clk
0:00:19.8]} 64. Bc4 {[%clk 0:00:14.2]} 64... Rf2 {[%clk 0:00:18.5]} 65. Rd4+
{[%clk 0:00:13.7]} 65... f4 {[%clk 0:00:17.7]} 66. Rd5 {[%clk 0:00:14.4]} 66...
Rd2 {[%clk 0:00:11.2]} 67. Rxd2 {[%clk 0:00:08.2]} 67... exd2 {[%clk 0:00:11.8]}
68. Be2+ {[%clk 0:00:09.1]} 68... f3 {[%clk 0:00:12]} 69. Bd1 {[%clk 0:00:10]}
69... Kf4 {[%clk 0:00:12]} 70. Kg1 {[%clk 0:00:10.3]} 70... f2+ {[%clk
0:00:10.2]} 71. Kf1 {[%clk 0:00:07.7]} 71... h2 {[%clk 0:00:10.4]} 72. Bf3
{[%clk 0:00:07.5]} 72... h1=Q+ {[%clk 0:00:09.5]} 0-1

[Event "Early-Titled-Tuesday-Blitz-September-05-2023"]
[Site "Chess.com"]
[Date "2023.09.05"]
[Round "6"]
[White "Msb2"]
[Black "Bauman_Guy"]
[Result "1/2-1/2"]
[WhiteElo "3092"]
[BlackElo "2866"]
[TimeControl "180+1"]
[EndTime "9:07:52 PDT"]
[Termination "Game drawn by repetition"]

1. d4 {[%clk 0:03:00.9]} 1... Nf6 {[%clk 0:02:59.8]} 2. c4 {[%clk 0:03:01.3]}
2... e6 {[%clk 0:02:56.1]} 3. Nc3 {[%clk 0:03:01.3]} 3... Bb4 {[%clk 0:02:56]}
4. e3 {[%clk 0:03:01.9]} 4... O-O {[%clk 0:02:50.8]} 5. Bd2 {[%clk 0:03:02.2]}
5... b6 {[%clk 0:02:50.8]} 6. Nf3 {[%clk 0:03:02]} 6... Bb7 {[%clk 0:02:51.1]}
7. Bd3 {[%clk 0:03:02.7]} 7... d6 {[%clk 0:02:49]} 8. O-O {[%clk 0:03:02.4]}
8... Nbd7 {[%clk 0:02:49.4]} 9. a3 {[%clk 0:03:02.5]} 9... Bxc3 {[%clk
0:02:49.3]} 10. Bxc3 {[%clk 0:03:03.4]} 10... Ne4 {[%clk 0:02:50.2]} 11. Be1
{[%clk 0:03:03.9]} 11... f5 {[%clk 0:02:50.3]} 12. Kh1 {[%clk 0:03:04.2]} 12...
Rf6 {[%clk 0:02:46.4]} 13. Ng1 {[%clk 0:03:03.9]} 13... Rh6 {[%clk 0:02:45.8]}
14. f3 {[%clk 0:03:03.4]} 14... Ng5 {[%clk 0:02:46.1]} 15. Qe2 {[%clk
0:02:57.3]} 15... Qe8 {[%clk 0:02:45.4]} 16. Bg3 {[%clk 0:02:42.7]} 16... Qh5
{[%clk 0:02:44.6]} 17. Rae1 {[%clk 0:02:42.9]} 17... Rf8 {[%clk 0:02:42.3]} 18.
Qd2 {[%clk 0:02:21.2]} 18... a5 {[%clk 0:02:20.6]} 19. b4 {[%clk 0:02:20.8]}
19... axb4 {[%clk 0:02:19.2]} 20. axb4 {[%clk 0:02:21.7]} 20... e5 {[%clk
0:02:13.1]} 21. dxe5 {[%clk 0:02:21.7]} 21... Nxe5 {[%clk 0:02:08.5]} 22. Be2
{[%clk 0:02:14]} 22... Qg6 {[%clk 0:01:59.1]} 23. Bf4 {[%clk 0:01:58.9]} 23...
Rh5 {[%clk 0:01:58]} 24. Qb2 {[%clk 0:01:54.6]} 24... Ne6 {[%clk 0:01:49]} 25.
Nh3 {[%clk 0:01:48.2]} 25... Re8 {[%clk 0:01:36]} 26. Qc3 {[%clk 0:01:36]} 26...
Qf6 {[%clk 0:01:20.5]} 27. Bg3 {[%clk 0:01:28.5]} 27... Rxh3 {[%clk 0:01:14.5]}
28. Bxe5 {[%clk 0:01:20.5]} 28... dxe5 {[%clk 0:01:14.4]} 29. gxh3 {[%clk
0:01:21]} 29... f4 {[%clk 0:01:14.4]} 30. c5 {[%clk 0:01:17.2]} 30... Ng5 {[%clk
0:00:50.8]} 31. exf4 {[%clk 0:01:08.5]} 31... Qxf4 {[%clk 0:00:49.2]} 32. c6
{[%clk 0:01:03.8]} 32... Bc8 {[%clk 0:00:48.1]} 33. Qc4+ {[%clk 0:01:04.2]}
33... Kf8 {[%clk 0:00:45.3]} 34. Qxf4+ {[%clk 0:01:02.3]} 34... exf4 {[%clk
0:00:46.2]} 35. h4 {[%clk 0:01:01.6]} 35... Nf7 {[%clk 0:00:46]} 36. Bc4 {[%clk
0:00:59.4]} 36... Ne5 {[%clk 0:00:43.9]} 37. Re4 {[%clk 0:00:55.2]} 37... Nxc4
{[%clk 0:00:37.2]} 38. Rxf4+ {[%clk 0:00:51.7]} 38... Kg8 {[%clk 0:00:37]} 39.
Rxc4 {[%clk 0:00:52.1]} 39... Ba6 {[%clk 0:00:37.2]} 40. Rfc1 {[%clk 0:00:47.4]}
40... Bxc4 {[%clk 0:00:37]} 41. Rxc4 {[%clk 0:00:48.3]} 41... Re2 {[%clk
0:00:26.2]} 42. Rd4 {[%clk 0:00:43.1]} 42... Kf7 {[%clk 0:00:21.4]} 43. Kg1
{[%clk 0:00:34.5]} 43... Kf6 {[%clk 0:00:20.2]} 44. Kf1 {[%clk 0:00:22.2]} 44...
Rc2 {[%clk 0:00:17.4]} 45. b5 {[%clk 0:00:22.3]} 45... Rc5 {[%clk 0:00:17.3]}
46. Rd7 {[%clk 0:00:22.4]} 46... Rxb5 {[%clk 0:00:17.5]} 47. Rxc7 {[%clk
0:00:23.1]} 47... Rc5 {[%clk 0:00:18.1]} 48. Kg2 {[%clk 0:00:23.8]} 48... b5
{[%clk 0:00:17.2]} 49. Rc8 {[%clk 0:00:24.3]} 49... b4 {[%clk 0:00:15.7]} 50. c7
{[%clk 0:00:24.3]} 50... Kg6 {[%clk 0:00:16]} 51. Kg3 {[%clk 0:00:21.5]} 51...
b3 {[%clk 0:00:16.1]} 52. Rb8 {[%clk 0:00:22.1]} 52... Rxc7 {[%clk 0:00:16.1]}
53. Rb6+ {[%clk 0:00:22.8]} 53... Kf7 {[%clk 0:00:15.8]} 54. Rxb3 {[%clk
0:00:23]} 54... h5 {[%clk 0:00:15.7]} 55. Rb5 {[%clk 0:00:22.4]} 55... Kg6
{[%clk 0:00:15.6]} 56. Rb6+ {[%clk 0:00:22]} 56... Kh7 {[%clk 0:00:15.4]} 57.
Ra6 {[%clk 0:00:21.8]} 57... Rc4 {[%clk 0:00:15.4]} 58. Ra5 {[%clk 0:00:22]}
58... g6 {[%clk 0:00:15.6]} 59. Re5 {[%clk 0:00:21.9]} 59... Kh6 {[%clk
0:00:15.6]} 60. Re4 {[%clk 0:00:21.4]} 60... Rc5 {[%clk 0:00:15.3]} 61. Rf4
{[%clk 0:00:20.3]} 61... Kg7 {[%clk 0:00:15.4]} 62. Ra4 {[%clk 0:00:20.5]} 62...
Rd5 {[%clk 0:00:15.7]} 63. Kf4 {[%clk 0:00:20.8]} 63... Rf5+ {[%clk 0:00:15.7]}
64. Ke4 {[%clk 0:00:21.5]} 64... Rb5 {[%clk 0:00:16]} 65. f4 {[%clk 0:00:20.5]}
65... Rb2 {[%clk 0:00:15.9]} 66. f5 {[%clk 0:00:12.4]} 66... Re2+ {[%clk
0:00:12.9]} 67. Kf3 {[%clk 0:00:11.2]} 67... Rxh2 {[%clk 0:00:12.9]} 68. fxg6
{[%clk 0:00:09.3]} 68... Kxg6 {[%clk 0:00:13]} 69. Kg3 {[%clk 0:00:09.8]} 69...
Re2 {[%clk 0:00:12.6]} 70. Ra6+ {[%clk 0:00:10.3]} 70... Kf5 {[%clk 0:00:12.5]}
71. Rh6 {[%clk 0:00:10.5]} 71... Re3+ {[%clk 0:00:12.7]} 72. Kf2 {[%clk
0:00:11]} 72... Rh3 {[%clk 0:00:13]} 73. Rxh5+ {[%clk 0:00:11.2]} 73... Kg4
{[%clk 0:00:13.4]} 74. Rh8 {[%clk 0:00:11.5]} 74... Rxh4 {[%clk 0:00:13.4]} 75.
Rg8+ {[%clk 0:00:12.4]} 75... Kf5 {[%clk 0:00:13.8]} 76. Ra8 {[%clk 0:00:13.3]}
76... Rb4 {[%clk 0:00:14]} 77. Kf3 {[%clk 0:00:13.9]} 77... Rb3+ {[%clk
0:00:14.1]} 78. Ke2 {[%clk 0:00:14.5]} 78... Ke4 {[%clk 0:00:15]} 79. Ra4+
{[%clk 0:00:14.3]} 79... Kd5 {[%clk 0:00:15.2]} 80. Rh4 {[%clk 0:00:15.2]} 80...
Ke5 {[%clk 0:00:15.4]} 81. Kd2 {[%clk 0:00:15.5]} 81... Rg3 {[%clk 0:00:15.4]}
82. Ke2 {[%clk 0:00:16]} 82... Kf5 {[%clk 0:00:15.8]} 83. Kd2 {[%clk 0:00:16.5]}
83... Rb3 {[%clk 0:00:16.3]} 84. Ke2 {[%clk 0:00:16.9]} 84... Rg3 {[%clk
0:00:16.8]} 85. Kd2 {[%clk 0:00:17.5]} 85... Rb3 {[%clk 0:00:17.4]} 86. Ke2
{[%clk 0:00:18.1]} 86... Rg3 {[%clk 0:00:17.4]} 1/2-1/2

[Event "Early-Titled-Tuesday-Blitz-September-05-2023"]
[Site "Chess.com"]
[Date "2023.09.05"]
[Round "6"]
[White "Keeper0416"]
[Black "Zhigalko_Sergei"]
[Result "1-0"]
[WhiteElo "2603"]
[BlackElo "2869"]
[TimeControl "180+1"]
[EndTime "9:08:13 PDT"]
[Termination "Keeper0416 won on time"]

1. d4 {[%clk 0:03:00.9]} 1... Nf6 {[%clk 0:03:00.2]} 2. c4 {[%clk 0:03:01.2]}
2... e6 {[%clk 0:03:00.8]} 3. Nf3 {[%clk 0:03:01.7]} 3... b6 {[%clk 0:03:01.2]}
4. g3 {[%clk 0:03:01.7]} 4... Ba6 {[%clk 0:03:01.3]} 5. Qc2 {[%clk 0:03:02]}
5... Bb4+ {[%clk 0:03:00.5]} 6. Bd2 {[%clk 0:03:01.7]} 6... Be7 {[%clk
0:02:59.5]} 7. Bg2 {[%clk 0:03:02.3]} 7... O-O {[%clk 0:02:58.5]} 8. O-O {[%clk
0:03:02]} 8... c6 {[%clk 0:02:59]} 9. b3 {[%clk 0:02:56.8]} 9... d5 {[%clk
0:02:58.4]} 10. Ne5 {[%clk 0:02:54.1]} 10... Nfd7 {[%clk 0:02:58]} 11. Nf3
{[%clk 0:02:35.9]} 11... Nf6 {[%clk 0:02:52.8]} 12. Ne5 {[%clk 0:02:35.6]} 12...
Bb7 {[%clk 0:02:49.3]} 13. Rc1 {[%clk 0:02:28.3]} 13... Nbd7 {[%clk 0:02:46.7]}
14. cxd5 {[%clk 0:02:24.4]} 14... Nxe5 {[%clk 0:02:46.7]} 15. dxe5 {[%clk
0:02:16]} 15... Nxd5 {[%clk 0:02:46.1]} 16. e4 {[%clk 0:02:07.3]} 16... Nb4
{[%clk 0:02:41]} 17. Bxb4 {[%clk 0:02:01.3]} 17... Bxb4 {[%clk 0:02:40.5]} 18.
Rd1 {[%clk 0:01:52.9]} 18... Qc7 {[%clk 0:01:50.1]} 19. f4 {[%clk 0:01:52]}
19... Rfd8 {[%clk 0:01:30.3]} 20. Nc3 {[%clk 0:01:51.3]} 20... Qe7 {[%clk
0:01:30.2]} 21. Ne2 {[%clk 0:01:41.2]} 21... Ba6 {[%clk 0:01:27.6]} 22. Bf1
{[%clk 0:01:30.6]} 22... h5 {[%clk 0:00:36.2]} 23. h4 {[%clk 0:01:16.7]} 23...
Bd3 {[%clk 0:00:11.7]} 24. Rxd3 {[%clk 0:01:05.5]} 24... Qc5+ {[%clk 0:00:11.5]}
25. Nd4 {[%clk 0:00:42.6]} 25... Rxd4 {[%clk 0:00:11.2]} 26. Qxc5 {[%clk
0:00:41.1]} 26... Bxc5 {[%clk 0:00:12.1]} 27. Kg2 {[%clk 0:00:33.3]} 27... Rxe4
{[%clk 0:00:08.7]} 28. Kf3 {[%clk 0:00:33.4]} 28... Rd4 {[%clk 0:00:07]} 29.
Rad1 {[%clk 0:00:32.2]} 29... Rad8 {[%clk 0:00:03.8]} 30. Rxd4 {[%clk
0:00:18.7]} 30... Bxd4 {[%clk 0:00:04.7]} 31. Ba6 {[%clk 0:00:18.9]} 31... c5
{[%clk 0:00:04.6]} 32. Ke4 {[%clk 0:00:19.2]} 32... g6 {[%clk 0:00:04.5]} 33. a4
{[%clk 0:00:17.4]} 33... Rd7 {[%clk 0:00:04.4]} 34. Bb5 {[%clk 0:00:17.5]} 34...
Rc7 {[%clk 0:00:04.3]} 35. Ba6 {[%clk 0:00:16.6]} 35... Kf8 {[%clk 0:00:04.6]}
36. Bb5 {[%clk 0:00:16.8]} 36... Ke7 {[%clk 0:00:04.9]} 37. Ba6 {[%clk
0:00:17.5]} 37... f6 {[%clk 0:00:03.9]} 38. Bc4 {[%clk 0:00:12.9]} 38... Rd7
{[%clk 0:00:03.6]} 39. Bb5 {[%clk 0:00:12.1]} 39... Rd8 {[%clk 0:00:03.5]} 40.
Bc4 {[%clk 0:00:12.3]} 40... Rb8 {[%clk 0:00:03.1]} 41. Bb5 {[%clk 0:00:08.2]}
41... Rf8 {[%clk 0:00:03.3]} 42. Rf1 {[%clk 0:00:07.7]} 42... Rf7 {[%clk
0:00:02.8]} 43. Bc4 {[%clk 0:00:07.2]} 43... Rf8 {[%clk 0:00:02.9]} 44. Bb5
{[%clk 0:00:07.7]} 44... Ra8 {[%clk 0:00:03]} 45. Ba6 {[%clk 0:00:08]} 45... Rb8
{[%clk 0:00:03.4]} 46. Bb5 {[%clk 0:00:08.4]} 46... Rd8 {[%clk 0:00:03.6]} 47.
Bc4 {[%clk 0:00:08.5]} 47... Bc3 {[%clk 0:00:03.6]} 48. exf6+ {[%clk 0:00:06.3]}
48... Kxf6 {[%clk 0:00:04.5]} 49. Ke3 {[%clk 0:00:04.7]} 49... Rd4 {[%clk
0:00:04]} 50. Rf2 {[%clk 0:00:02.8]} 50... Bb4 {[%clk 0:00:03.6]} 51. Re2 {[%clk
0:00:03.1]} 51... e5 {[%clk 0:00:03.1]} 52. fxe5+ {[%clk 0:00:02.8]} 52... Kxe5
{[%clk 0:00:04]} 53. Kf3+ {[%clk 0:00:03.7]} 53... Kf5 {[%clk 0:00:04.4]} 54.
Be6+ {[%clk 0:00:02.8]} 54... Kf6 {[%clk 0:00:04.7]} 55. Bc4 {[%clk 0:00:03.7]}
55... Bc3 {[%clk 0:00:04.5]} 56. Re6+ {[%clk 0:00:03.4]} 56... Kf5 {[%clk
0:00:04]} 57. Re7 {[%clk 0:00:03.6]} 57... g5 {[%clk 0:00:04.3]} 58. hxg5 {[%clk
0:00:03.7]} 58... Kxg5 {[%clk 0:00:05.2]} 59. Rg7+ {[%clk 0:00:04]} 59... Kf6
{[%clk 0:00:04.9]} 60. Rf7+ {[%clk 0:00:04.3]} 60... Kg6 {[%clk 0:00:04.8]} 61.
Rxa7 {[%clk 0:00:04.5]} 61... Ba5 {[%clk 0:00:05.2]} 62. Re7 {[%clk 0:00:03.6]}
62... Rd2 {[%clk 0:00:04.6]} 63. Re6+ {[%clk 0:00:03.8]} 63... Kf5 {[%clk
0:00:04.7]} 64. Re2 {[%clk 0:00:04.7]} 64... Rd4 {[%clk 0:00:04.3]} 65. Be6+
{[%clk 0:00:04.9]} 65... Kf6 {[%clk 0:00:04.3]} 66. Bc4 {[%clk 0:00:05.5]} 66...
Rd1 {[%clk 0:00:04.4]} 67. Re6+ {[%clk 0:00:05.7]} 67... Kf5 {[%clk 0:00:04.4]}
68. Re2 {[%clk 0:00:04.4]} 68... Rc1 {[%clk 0:00:04]} 69. Re8 {[%clk 0:00:02.3]}
69... Rc3+ {[%clk 0:00:03.9]} 70. Kg2 {[%clk 0:00:02.9]} 70... Bb4 {[%clk
0:00:03.1]} 71. Rf8+ {[%clk 0:00:03.5]} 71... Kg6 {[%clk 0:00:03]} 72. Rg8+
{[%clk 0:00:03.4]} 72... Kh7 {[%clk 0:00:02.6]} 73. Rg5 {[%clk 0:00:03.2]} 73...
Kh6 {[%clk 0:00:03]} 74. Rg8 {[%clk 0:00:03.8]} 74... Re3 {[%clk 0:00:02.9]} 75.
Kf2 {[%clk 0:00:03.7]} 75... Rc3 {[%clk 0:00:02.4]} 76. Kg2 {[%clk 0:00:04]}
76... Ba3 {[%clk 0:00:02.9]} 77. Kf2 {[%clk 0:00:03.8]} 77... Bc1 {[%clk
0:00:02.5]} 78. Kg2 {[%clk 0:00:04.1]} 78... Bd2 {[%clk 0:00:02.4]} 79. Bf7
{[%clk 0:00:04.6]} 79... Be1 {[%clk 0:00:02.1]} 80. Bc4 {[%clk 0:00:03.7]} 80...
Kh7 {[%clk 0:00:01.7]} 81. Kh3 {[%clk 0:00:02.1]} 81... Rxc4 {[%clk 0:00:01.4]}
82. bxc4 {[%clk 0:00:01.7]} 82... Kxg8 {[%clk 0:00:01.3]} 83. Kh4 {[%clk
0:00:02.6]} 83... Kf7 {[%clk 0:00:01.5]} 84. Kxh5 {[%clk 0:00:03.5]} 1-0